[Event "January 2 Early 2024"]
[Site "https://www.chess.com"]
[Date "2024.01.02"]
[Round "4"]
[White "Manelyuk, Daniil"]
[Black "Srdanovic, Jovana"]
[Result "1-0"]
[Board "77"]
[TimeControl "180+1"]
[WhiteFideId "44173920"]
[BlackFideId "954810"]
[WhiteElo "2734"]
[BlackElo "2506"]
[WhiteTeam "RUS"]
[BlackTeam "SRB"]
[WhiteClock "0:00:22"]
[BlackClock "0:00:59"]

1. e4 {[%clk 0:02:07]}  c5 {[%clk 0:02:59]} 2. Nf3 {[%clk 0:02:07]}  Nf6 {[%clk 0:03:00]} 3. Nc3 {[%clk 0:02:07]}  d5 {[%clk 0:03:00]} 4. exd5 {[%clk 0:02:06]}  Nxd5 {[%clk 0:03:01]} 5. Nxd5 {[%clk 0:02:07]}  Qxd5 {[%clk 0:03:00]} 6. Be2 {[%clk 0:02:04]}  Nc6 {[%clk 0:03:01]} 7. O-O {[%clk 0:02:04]}  Bg4 {[%clk 0:03:01]} 8. b3 {[%clk 0:02:04]}  e6 {[%clk 0:02:56]} 9. Bb2 {[%clk 0:02:03]}  O-O-O {[%clk 0:02:54]} 10. a3 {[%clk 0:02:02]}  Bxf3 {[%clk 0:02:52]} 11. Bxf3 {[%clk 0:02:01]}  Qxd2 {[%clk 0:02:52]} 12. Qb1 {[%clk 0:02:02]}  Nd4 {[%clk 0:02:49]} 13. Be4 {[%clk 0:02:01]}  Ne2+ {[%clk 0:02:44]} 14. Kh1 {[%clk 0:02:01]}  Nc3 {[%clk 0:02:40]} 15. Bxc3 {[%clk 0:02:01]}  Qxc3 {[%clk 0:02:41]} 16. b4 {[%clk 0:02:01]}  c4 {[%clk 0:02:38]} 17. Qc1 {[%clk 0:01:54]}  f5 {[%clk 0:02:37]} 18. Bf3 {[%clk 0:01:53]}  Bd6 {[%clk 0:02:33]} 19. Qg5 {[%clk 0:01:51]}  Qe5 {[%clk 0:02:30]} 20. g3 {[%clk 0:01:50]}  h6 {[%clk 0:02:20]} 21. Qc1 {[%clk 0:01:38]}  h5 {[%clk 0:02:16]} 22. Re1 {[%clk 0:01:37]}  Qf6 {[%clk 0:02:16]} 23. Qe3 {[%clk 0:01:37]}  Kb8 {[%clk 0:02:14]} 24. Qxe6 {[%clk 0:01:35]}  Qxe6 {[%clk 0:02:13]} 25. Rxe6 {[%clk 0:01:36]}  h4 {[%clk 0:02:12]} 26. Rd1 {[%clk 0:01:32]}  Bc7 {[%clk 0:02:06]} 27. Rxd8+ {[%clk 0:01:31]}  Bxd8 {[%clk 0:02:07]} 28. Kg2 {[%clk 0:01:19]}  hxg3 {[%clk 0:02:05]} 29. hxg3 {[%clk 0:01:17]}  Bf6 {[%clk 0:02:06]} 30. Bd5 {[%clk 0:01:14]}  c3 {[%clk 0:02:05]} 31. Bc4 {[%clk 0:01:14]}  Rd8 {[%clk 0:02:03]} 32. Re2 {[%clk 0:01:01]}  a6 {[%clk 0:01:59]} 33. Bd3 {[%clk 0:01:01]}  g6 {[%clk 0:01:57]} 34. g4 {[%clk 0:00:59]}  fxg4 {[%clk 0:01:50]} 35. Kg3 {[%clk 0:00:59]}  Rd4 {[%clk 0:01:47]} 36. Bxg6 {[%clk 0:00:55]}  Rd2 {[%clk 0:01:46]} 37. Bd3 {[%clk 0:00:54]}  Rd1 {[%clk 0:01:39]} 38. Kxg4 {[%clk 0:00:52]}  Ra1 {[%clk 0:01:39]} 39. Re8+ {[%clk 0:00:51]}  Kc7 {[%clk 0:01:38]} 40. Rf8 {[%clk 0:00:50]}  Be7 {[%clk 0:01:37]} 41. Rf7 {[%clk 0:00:47]}  Kd6 {[%clk 0:01:37]} 42. Be4 {[%clk 0:00:45]}  b5 {[%clk 0:01:36]} 43. f4 {[%clk 0:00:37]}  Rxa3 {[%clk 0:01:36]} 44. f5 {[%clk 0:00:38]}  Ra4 {[%clk 0:01:36]} 45. f6 {[%clk 0:00:37]}  Bd8 {[%clk 0:01:33]} 46. Kf5 {[%clk 0:00:33]}  Rxb4 {[%clk 0:01:30]} 47. Rf8 {[%clk 0:00:32]}  Bxf6 {[%clk 0:01:28]} 48. Rxf6+ {[%clk 0:00:32]}  Kc5 {[%clk 0:01:28]} 49. Rxa6 {[%clk 0:00:32]}  Rb1 {[%clk 0:01:29]} 50. Ke5 {[%clk 0:00:27]}  Re1 {[%clk 0:01:28]} 51. Rc6+ {[%clk 0:00:26]}  Kb4 {[%clk 0:01:28]} 52. Kd4 {[%clk 0:00:25]}  Rd1+ {[%clk 0:01:14]} 53. Bd3 {[%clk 0:00:25]}  Rh1 {[%clk 0:01:13]} 54. Rb6 {[%clk 0:00:25]}  Rh4+ {[%clk 0:01:13]} 55. Kd5 {[%clk 0:00:25]}  Rh5+ {[%clk 0:01:13]} 56. Kc6 {[%clk 0:00:26]}  Ka3 {[%clk 0:01:13]} 57. Rxb5 {[%clk 0:00:25]}  Rh6+ {[%clk 0:01:13]} 58. Kc5 {[%clk 0:00:25]}  Rh5+ {[%clk 0:01:13]} 59. Kc4 {[%clk 0:00:26]}  Rh4+ {[%clk 0:01:07]} 60. Kxc3 {[%clk 0:00:25]}  Ka2 {[%clk 0:00:59]} 61. Bc4+ {[%clk 0:00:22]} 1-0

[Event "January 2 Early 2024"]
[Site "https://www.chess.com"]
[Date "2024.01.02"]
[Round "4"]
[White "Syaputra, Arifa Rizki"]
[Black "Weisz, Bryan"]
[Result "1-0"]
[Board "79"]
[TimeControl "180+1"]
[WhiteFideId "7105100"]
[BlackFideId "30934133"]
[WhiteElo "2728"]
[BlackElo "2503"]
[WhiteTeam "INA"]
[BlackTeam "USA"]
[WhiteClock "0:00:13"]
[BlackClock "0:00:05"]

1. d4 {[%clk 0:03:00]}  d6 {[%clk 0:03:00]} 2. c4 {[%clk 0:03:00]}  Nf6 {[%clk 0:02:59]} 3. g3 {[%clk 0:02:59]}  g6 {[%clk 0:02:55]} 4. Bg2 {[%clk 0:02:59]}  Bg7 {[%clk 0:02:56]} 5. Nf3 {[%clk 0:02:59]}  O-O {[%clk 0:02:57]} 6. O-O {[%clk 0:03:00]}  c5 {[%clk 0:02:56]} 7. Nc3 {[%clk 0:02:57]}  cxd4 {[%clk 0:02:54]} 8. Nxd4 {[%clk 0:02:58]}  Nc6 {[%clk 0:02:55]} 9. Nxc6 {[%clk 0:02:50]}  bxc6 {[%clk 0:02:55]} 10. Bxc6 {[%clk 0:02:50]}  Rb8 {[%clk 0:02:53]} 11. Bg2 {[%clk 0:02:45]}  Be6 {[%clk 0:02:51]} 12. b3 {[%clk 0:01:56]}  d5 {[%clk 0:02:50]} 13. Nxd5 {[%clk 0:01:20]}  Nxd5 {[%clk 0:02:43]} 14. cxd5 {[%clk 0:01:20]}  Bxa1 {[%clk 0:02:32]} 15. dxe6 {[%clk 0:01:19]}  Qxd1 {[%clk 0:02:26]} 16. Rxd1 {[%clk 0:01:10]}  Rfd8 {[%clk 0:02:06]} 17. exf7+ {[%clk 0:00:57]}  Kxf7 {[%clk 0:02:05]} 18. Rf1 {[%clk 0:00:57]}  Rbc8 {[%clk 0:01:56]} 19. Ba3 {[%clk 0:00:41]}  Bd4 {[%clk 0:01:48]} 20. Be4 {[%clk 0:00:41]}  Bc5 {[%clk 0:01:45]} 21. Bc1 {[%clk 0:00:38]}  Bb6 {[%clk 0:01:37]} 22. Kg2 {[%clk 0:00:35]}  Rc7 {[%clk 0:01:27]} 23. Bf4 {[%clk 0:00:32]}  Rcc8 {[%clk 0:01:11]} 24. Bd3 {[%clk 0:00:29]}  Bc7 {[%clk 0:01:08]} 25. Be3 {[%clk 0:00:27]}  Bb6 {[%clk 0:01:08]} 26. Bf4 {[%clk 0:00:28]}  Rc5 {[%clk 0:01:06]} 27. h4 {[%clk 0:00:27]}  e5 {[%clk 0:01:06]} 28. Bg5 {[%clk 0:00:27]}  Rdc8 {[%clk 0:01:04]} 29. Rh1 {[%clk 0:00:26]}  h5 {[%clk 0:01:01]} 30. Bd2 {[%clk 0:00:24]}  Rd8 {[%clk 0:00:53]} 31. Bg5 {[%clk 0:00:23]}  Rd7 {[%clk 0:00:52]} 32. Bc4+ {[%clk 0:00:20]}  Kg7 {[%clk 0:00:52]} 33. Kf3 {[%clk 0:00:20]}  e4+ {[%clk 0:00:43]} 34. Kxe4 {[%clk 0:00:16]}  Ra5 {[%clk 0:00:41]} 35. a4 {[%clk 0:00:12]}  Bxf2 {[%clk 0:00:38]} 36. Kf3 {[%clk 0:00:12]}  Rf5+ {[%clk 0:00:36]} 37. Bf4 {[%clk 0:00:11]}  Bxg3 {[%clk 0:00:23]} 38. Kxg3 {[%clk 0:00:10]}  Rd4 {[%clk 0:00:23]} 39. e3 {[%clk 0:00:11]}  Rd2 {[%clk 0:00:23]} 40. Rf1 {[%clk 0:00:10]}  a5 {[%clk 0:00:17]} 41. Rf2 {[%clk 0:00:10]}  Rd1 {[%clk 0:00:17]} 42. Kf3 {[%clk 0:00:11]}  Rh1 {[%clk 0:00:16]} 43. Kg3 {[%clk 0:00:11]}  Rg1+ {[%clk 0:00:16]} 44. Rg2 {[%clk 0:00:12]}  Rh1 {[%clk 0:00:15]} 45. Bd3 {[%clk 0:00:11]}  Rd5 {[%clk 0:00:14]} 46. Be4 {[%clk 0:00:11]}  Rdd1 {[%clk 0:00:13]} 47. Kf3 {[%clk 0:00:11]}  Rxh4 {[%clk 0:00:11]} 48. Rxg6+ {[%clk 0:00:11]}  Kf7 {[%clk 0:00:11]} 49. Ra6 {[%clk 0:00:11]}  Rhh1 {[%clk 0:00:09]} 50. Bg3 {[%clk 0:00:09]}  h4 {[%clk 0:00:09]} 51. Be5 {[%clk 0:00:08]}  Rdf1+ {[%clk 0:00:07]} 52. Kg4 {[%clk 0:00:08]}  h3 {[%clk 0:00:06]} 53. Bxh1 {[%clk 0:00:08]}  Rxh1 {[%clk 0:00:06]} 54. Rh6 {[%clk 0:00:08]}  Rg1+ {[%clk 0:00:05]} 55. Kxh3 {[%clk 0:00:07]}  Rh1+ {[%clk 0:00:06]} 56. Bh2 {[%clk 0:00:08]}  Rb1 {[%clk 0:00:06]} 57. Rb6 {[%clk 0:00:08]}  Re1 {[%clk 0:00:06]} 58. Rb5 {[%clk 0:00:09]}  Rxe3+ {[%clk 0:00:06]} 59. Bg3 {[%clk 0:00:10]}  Kf6 {[%clk 0:00:04]} 60. Kg4 {[%clk 0:00:10]}  Ke6 {[%clk 0:00:02]} 61. Bf4 {[%clk 0:00:10]}  Re4 {[%clk 0:00:03]} 62. Rxa5 {[%clk 0:00:10]}  Rb4 {[%clk 0:00:04]} 63. Rb5 {[%clk 0:00:10]}  Re4 {[%clk 0:00:04]} 64. a5 {[%clk 0:00:10]}  Re1 {[%clk 0:00:04]} 65. Rb6+ {[%clk 0:00:10]}  Kd7 {[%clk 0:00:05]} 66. b4 {[%clk 0:00:10]}  Rg1+ {[%clk 0:00:06]} 67. Kf5 {[%clk 0:00:10]}  Kc8 {[%clk 0:00:06]} 68. Rb8+ {[%clk 0:00:10]}  Kd7 {[%clk 0:00:06]} 69. a6 {[%clk 0:00:11]}  Rd1 {[%clk 0:00:07]} 70. a7 {[%clk 0:00:11]}  Rd5+ {[%clk 0:00:07]} 71. Be5 {[%clk 0:00:11]}  Rd1 {[%clk 0:00:05]} 72. a8=Q {[%clk 0:00:11]}  Rf1+ {[%clk 0:00:06]} 73. Bf4 {[%clk 0:00:12]}  Re1 {[%clk 0:00:04]} 74. Qd5+ {[%clk 0:00:11]}  Ke7 {[%clk 0:00:04]} 75. Rb7+ {[%clk 0:00:11]}  Kf8 {[%clk 0:00:05]} 76. Qd8+ {[%clk 0:00:11]}  Re8 {[%clk 0:00:05]} 77. Qf6+ {[%clk 0:00:12]}  Kg8 {[%clk 0:00:05]} 78. Qg7# {[%clk 0:00:13]} 1-0

[Event "January 2 Early 2024"]
[Site "https://www.chess.com"]
[Date "2024.01.02"]
[Round "4"]
[White "Spitzl, Vinzent"]
[Black "Fier, Alexandr"]
[Result "0-1"]
[Board "81"]
[TimeControl "180+1"]
[WhiteFideId "12901253"]
[BlackFideId "2107139"]
[WhiteElo "2487"]
[BlackElo "2722"]
[WhiteTeam "GER"]
[BlackTeam "BRA"]
[WhiteClock "0:00:44"]
[BlackClock "0:02:55"]

1. e4 {[%clk 0:02:49]}  Nf6 {[%clk 0:02:59]} 2. e5 {[%clk 0:02:43]}  Nd5 {[%clk 0:02:59]} 3. d4 {[%clk 0:02:44]}  d6 {[%clk 0:02:59]} 4. Nf3 {[%clk 0:02:44]}  g6 {[%clk 0:02:59]} 5. c4 {[%clk 0:02:43]}  Nb6 {[%clk 0:02:59]} 6. exd6 {[%clk 0:02:42]}  cxd6 {[%clk 0:03:00]} 7. Nc3 {[%clk 0:02:42]}  Bg7 {[%clk 0:03:01]} 8. Be2 {[%clk 0:02:39]}  O-O {[%clk 0:03:01]} 9. Be3 {[%clk 0:02:32]}  Nc6 {[%clk 0:03:01]} 10. O-O {[%clk 0:02:31]}  Bg4 {[%clk 0:03:01]} 11. b3 {[%clk 0:02:31]}  d5 {[%clk 0:03:01]} 12. c5 {[%clk 0:02:29]}  Nc8 {[%clk 0:03:01]} 13. h3 {[%clk 0:02:24]}  Bxf3 {[%clk 0:03:01]} 14. Bxf3 {[%clk 0:02:24]}  e6 {[%clk 0:03:02]} 15. Qd2 {[%clk 0:02:20]}  N8e7 {[%clk 0:03:02]} 16. Ne2 {[%clk 0:02:18]}  Nf5 {[%clk 0:03:02]} 17. b4 {[%clk 0:02:09]}  Nh4 {[%clk 0:03:02]} 18. Bg4 {[%clk 0:01:54]}  h5 {[%clk 0:03:01]} 19. Bg5 {[%clk 0:01:53]}  Bf6 {[%clk 0:03:01]} 20. Bxh4 {[%clk 0:01:49]}  Bxh4 {[%clk 0:03:02]} 21. Bf3 {[%clk 0:01:49]}  Bf6 {[%clk 0:03:03]} 22. Rac1 {[%clk 0:01:26]}  Bg7 {[%clk 0:03:02]} 23. a4 {[%clk 0:01:23]}  a6 {[%clk 0:03:00]} 24. Rfd1 {[%clk 0:01:15]}  Kh7 {[%clk 0:03:00]} 25. g3 {[%clk 0:01:07]}  Bh6 {[%clk 0:02:58]} 26. Nf4 {[%clk 0:01:07]}  Qf6 {[%clk 0:02:59]} 27. b5 {[%clk 0:00:59]}  axb5 {[%clk 0:02:59]} 28. axb5 {[%clk 0:01:00]}  Na5 {[%clk 0:03:00]} 29. c6 {[%clk 0:00:59]}  Nb3 {[%clk 0:02:59]} 30. Qe3 {[%clk 0:00:57]}  Nxc1 {[%clk 0:02:59]} 31. Rxc1 {[%clk 0:00:58]}  bxc6 {[%clk 0:02:59]} 32. bxc6 {[%clk 0:00:58]}  Bxf4 {[%clk 0:03:00]} 33. gxf4 {[%clk 0:00:58]}  Ra4 {[%clk 0:02:59]} 34. c7 {[%clk 0:00:52]}  Rc8 {[%clk 0:02:59]} 35. Qb3 {[%clk 0:00:52]}  Rxd4 {[%clk 0:02:55]} 36. Qb7 {[%clk 0:00:52]}  Qxf4 {[%clk 0:02:55]} 37. Qxc8 {[%clk 0:00:49]}  Qxc1+ {[%clk 0:02:55]} 38. Kg2 {[%clk 0:00:44]}  Rc4 {[%clk 0:02:55]} 0-1

[Event "January 2 Early 2024"]
[Site "https://www.chess.com"]
[Date "2024.01.02"]
[Round "4"]
[White "Mgeladze, Tamaz"]
[Black "Barak, Gil"]
[Result "1-0"]
[Board "83"]
[TimeControl "180+1"]
[WhiteFideId "13601202"]
[BlackFideId "2812690"]
[WhiteElo "2706"]
[BlackElo "2465"]
[WhiteTeam "GEO"]
[BlackTeam "ISR"]
[WhiteClock "0:00:52"]
[BlackClock "0:00:00"]

1. c4 {[%clk 0:03:00]}  e6 {[%clk 0:02:53]} 2. Nf3 {[%clk 0:03:00]}  d5 {[%clk 0:02:51]} 3. g3 {[%clk 0:03:01]}  c5 {[%clk 0:02:50]} 4. Bg2 {[%clk 0:03:02]}  Nc6 {[%clk 0:02:49]} 5. cxd5 {[%clk 0:03:03]}  exd5 {[%clk 0:02:50]} 6. d4 {[%clk 0:03:03]}  Nf6 {[%clk 0:02:48]} 7. O-O {[%clk 0:03:03]}  Be7 {[%clk 0:02:49]} 8. dxc5 {[%clk 0:03:03]}  Bxc5 {[%clk 0:02:50]} 9. Nc3 {[%clk 0:03:03]}  O-O {[%clk 0:02:49]} 10. Na4 {[%clk 0:03:03]}  Be7 {[%clk 0:02:47]} 11. Be3 {[%clk 0:03:04]}  Bg4 {[%clk 0:02:45]} 12. h3 {[%clk 0:03:03]}  Bxf3 {[%clk 0:02:36]} 13. Bxf3 {[%clk 0:03:04]}  Qd7 {[%clk 0:02:33]} 14. Bg2 {[%clk 0:03:04]}  Rfd8 {[%clk 0:02:32]} 15. Rc1 {[%clk 0:03:04]}  Rac8 {[%clk 0:02:29]} 16. Nc5 {[%clk 0:03:03]}  Bxc5 {[%clk 0:02:24]} 17. Rxc5 {[%clk 0:03:03]}  Ne4 {[%clk 0:02:15]} 18. Bxe4 {[%clk 0:02:47]}  dxe4 {[%clk 0:02:16]} 19. Qxd7 {[%clk 0:02:48]}  Rxd7 {[%clk 0:02:17]} 20. Rfc1 {[%clk 0:02:48]}  g6 {[%clk 0:02:02]} 21. R1c4 {[%clk 0:02:44]}  f5 {[%clk 0:02:02]} 22. g4 {[%clk 0:02:45]}  Rd1+ {[%clk 0:01:58]} 23. Kg2 {[%clk 0:02:45]}  Rf8 {[%clk 0:01:59]} 24. gxf5 {[%clk 0:02:40]}  gxf5 {[%clk 0:01:59]} 25. Bf4 {[%clk 0:02:34]}  Rf6 {[%clk 0:01:44]} 26. e3 {[%clk 0:02:34]}  Rd2 {[%clk 0:01:29]} 27. Rc2 {[%clk 0:02:32]}  Rd7 {[%clk 0:01:22]} 28. a3 {[%clk 0:02:22]}  Rg7+ {[%clk 0:01:09]} 29. Bg3 {[%clk 0:02:21]}  h5 {[%clk 0:01:09]} 30. h4 {[%clk 0:02:22]}  a6 {[%clk 0:00:57]} 31. Rd5 {[%clk 0:02:19]}  f4 {[%clk 0:00:56]} 32. exf4 {[%clk 0:02:19]}  Rxf4 {[%clk 0:00:57]} 33. Rxh5 {[%clk 0:02:19]}  e3 {[%clk 0:00:41]} 34. Rg5 {[%clk 0:02:12]}  Rxg5 {[%clk 0:00:30]} 35. hxg5 {[%clk 0:02:12]}  Rg4 {[%clk 0:00:30]} 36. fxe3 {[%clk 0:02:00]}  Rxg5 {[%clk 0:00:30]} 37. Kf3 {[%clk 0:01:59]}  Kf7 {[%clk 0:00:29]} 38. Bf4 {[%clk 0:01:59]}  Rh5 {[%clk 0:00:29]} 39. Ke4 {[%clk 0:01:57]}  Ke6 {[%clk 0:00:30]} 40. Rg2 {[%clk 0:01:56]}  Kf6 {[%clk 0:00:25]} 41. Rg8 {[%clk 0:01:54]}  Rb5 {[%clk 0:00:24]} 42. b4 {[%clk 0:01:52]}  a5 {[%clk 0:00:24]} 43. bxa5 {[%clk 0:01:46]}  Rxa5 {[%clk 0:00:25]} 44. Bd6 {[%clk 0:01:39]}  Ke6 {[%clk 0:00:23]} 45. Rg6+ {[%clk 0:01:37]}  Kf7 {[%clk 0:00:22]} 46. Rh6 {[%clk 0:01:37]}  Ra6 {[%clk 0:00:13]} 47. Rh7+ {[%clk 0:01:27]}  Ke6 {[%clk 0:00:12]} 48. Bf8 {[%clk 0:01:26]}  Ra4+ {[%clk 0:00:11]} 49. Kd3 {[%clk 0:01:21]}  Ne5+ {[%clk 0:00:10]} 50. Kc3 {[%clk 0:01:22]}  b5 {[%clk 0:00:10]} 51. Bb4 {[%clk 0:01:19]}  Ra8 {[%clk 0:00:08]} 52. e4 {[%clk 0:01:17]}  Rc8+ {[%clk 0:00:08]} 53. Kb3 {[%clk 0:01:14]}  Nd3 {[%clk 0:00:09]} 54. Re7+ {[%clk 0:01:05]}  Kf6 {[%clk 0:00:09]} 55. Rb7 {[%clk 0:01:06]}  Nc1+ {[%clk 0:00:08]} 56. Kb2 {[%clk 0:01:07]}  Nd3+ {[%clk 0:00:09]} 57. Ka2 {[%clk 0:01:05]}  Nxb4+ {[%clk 0:00:04]} 58. axb4 {[%clk 0:01:06]}  Ke5 {[%clk 0:00:04]} 59. Rxb5+ {[%clk 0:00:56]}  Kxe4 {[%clk 0:00:04]} 60. Kb3 {[%clk 0:00:57]}  Kd4 {[%clk 0:00:04]} 61. Rh5 {[%clk 0:00:57]}  Rb8 {[%clk 0:00:04]} 62. b5 {[%clk 0:00:56]}  Rb7 {[%clk 0:00:01]} 63. Kb4 {[%clk 0:00:57]}  Rb8 {[%clk 0:00:01]} 64. Rg5 {[%clk 0:00:54]}  Rb7 {[%clk 0:00:01]} 65. Ka5 {[%clk 0:00:55]}  Kc4 {[%clk 0:00:01]} 66. Ka6 {[%clk 0:00:52]}  Rb8 {[%clk 0:00:01]} 67. b6 {[%clk 0:00:52]}  Ra8+ {[%clk 0:00:01]} 68. Kb7 {[%clk 0:00:53]}  Re8 {[%clk 0:00:00]} 69. Ka7 {[%clk 0:00:52]} 1-0

[Event "January 2 Early 2024"]
[Site "https://www.chess.com"]
[Date "2024.01.02"]
[Round "4"]
[White "Gullaksen, Eirik"]
[Black "Coca Cubillos, Jesus Alberto"]
[Result "0-1"]
[Board "84"]
[TimeControl "180+1"]
[WhiteFideId "1500945"]
[BlackFideId "4462912"]
[WhiteElo "2695"]
[BlackElo "2464"]
[WhiteTeam "NOR"]
[BlackTeam "COL"]
[WhiteClock "0:01:06"]
[BlackClock "0:02:00"]

1. e4 {[%clk 0:02:53]}  g6 {[%clk 0:02:59]} 2. d4 {[%clk 0:02:52]}  Bg7 {[%clk 0:03:00]} 3. Nc3 {[%clk 0:02:53]}  d6 {[%clk 0:03:00]} 4. Nf3 {[%clk 0:02:53]}  Nc6 {[%clk 0:03:01]} 5. h3 {[%clk 0:02:52]}  Nh6 {[%clk 0:02:58]} 6. Be3 {[%clk 0:02:52]}  f6 {[%clk 0:02:58]} 7. Qd2 {[%clk 0:02:50]}  Nf7 {[%clk 0:02:58]} 8. O-O-O {[%clk 0:02:50]}  O-O {[%clk 0:02:59]} 9. Bc4 {[%clk 0:02:50]}  Kh8 {[%clk 0:02:58]} 10. g4 {[%clk 0:02:49]}  e5 {[%clk 0:02:58]} 11. Kb1 {[%clk 0:02:46]}  a6 {[%clk 0:02:58]} 12. Rhg1 {[%clk 0:02:43]}  f5 {[%clk 0:02:56]} 13. gxf5 {[%clk 0:02:42]}  gxf5 {[%clk 0:02:57]} 14. exf5 {[%clk 0:02:41]}  Bxf5 {[%clk 0:02:56]} 15. Nh4 {[%clk 0:02:39]}  Qxh4 {[%clk 0:02:55]} 16. Bxf7 {[%clk 0:02:20]}  Rxf7 {[%clk 0:02:54]} 17. d5 {[%clk 0:02:18]}  Ne7 {[%clk 0:02:50]} 18. Bg5 {[%clk 0:02:14]}  Qh5 {[%clk 0:02:50]} 19. h4 {[%clk 0:02:12]}  Rg8 {[%clk 0:02:46]} 20. Ne2 {[%clk 0:02:09]}  Qf3 {[%clk 0:02:29]} 21. Ng3 {[%clk 0:01:48]}  Bg4 {[%clk 0:02:12]} 22. Qb4 {[%clk 0:01:32]}  Nxd5 {[%clk 0:02:03]} 23. Rxd5 {[%clk 0:01:25]}  Qxd5 {[%clk 0:02:04]} 24. Qxg4 {[%clk 0:01:25]}  Rxf2 {[%clk 0:02:02]} 25. Nh5 {[%clk 0:01:25]}  Qf3 {[%clk 0:01:59]} 26. Qxf3 {[%clk 0:01:14]}  Rxf3 {[%clk 0:02:00]} 27. Nxg7 {[%clk 0:01:14]}  Rxg7 {[%clk 0:02:00]} 28. a4 {[%clk 0:01:06]}  h6 {[%clk 0:02:00]} 0-1

[Event "January 2 Early 2024"]
[Site "https://www.chess.com"]
[Date "2024.01.02"]
[Round "4"]
[White "Zimmermann, Ulrich"]
[Black "Gritsenko, Nikolai"]
[Result "1-0"]
[Board "85"]
[TimeControl "180+1"]
[WhiteFideId "24654523"]
[BlackFideId "14112493"]
[WhiteElo "2442"]
[BlackElo "2692"]
[WhiteTeam "GER"]
[BlackTeam "UKR"]
[WhiteClock "0:00:26"]
[BlackClock "0:00:00"]

1. Nf3 {[%clk 0:03:00]}  c5 {[%clk 0:02:59]} 2. e3 {[%clk 0:03:01]}  Nf6 {[%clk 0:02:57]} 3. d4 {[%clk 0:03:01]}  e6 {[%clk 0:02:57]} 4. Be2 {[%clk 0:03:01]}  b6 {[%clk 0:02:57]} 5. O-O {[%clk 0:03:02]}  Bb7 {[%clk 0:02:57]} 6. c4 {[%clk 0:03:01]}  Be7 {[%clk 0:02:53]} 7. dxc5 {[%clk 0:03:01]}  bxc5 {[%clk 0:02:53]} 8. b3 {[%clk 0:03:01]}  O-O {[%clk 0:02:52]} 9. Bb2 {[%clk 0:03:02]}  d6 {[%clk 0:02:51]} 10. Nc3 {[%clk 0:02:59]}  a6 {[%clk 0:02:50]} 11. Qc2 {[%clk 0:02:59]}  Qc7 {[%clk 0:02:50]} 12. Rad1 {[%clk 0:02:59]}  Nbd7 {[%clk 0:02:50]} 13. Rd2 {[%clk 0:03:00]}  Rfd8 {[%clk 0:02:50]} 14. Rfd1 {[%clk 0:03:01]}  Nf8 {[%clk 0:02:49]} 15. Ng5 {[%clk 0:02:59]}  Ng6 {[%clk 0:02:42]} 16. Nce4 {[%clk 0:02:53]}  Nxe4 {[%clk 0:02:20]} 17. Nxe4 {[%clk 0:02:54]}  f5 {[%clk 0:02:15]} 18. Nc3 {[%clk 0:02:25]}  Nh4 {[%clk 0:02:07]} 19. Bf1 {[%clk 0:02:22]}  Qc6 {[%clk 0:01:57]} 20. f3 {[%clk 0:02:21]}  Nxf3+ {[%clk 0:01:21]} 21. gxf3 {[%clk 0:02:20]}  Qxf3 {[%clk 0:01:21]} 22. Bg2 {[%clk 0:02:15]}  Qxe3+ {[%clk 0:01:17]} 23. Kh1 {[%clk 0:02:15]}  Bxg2+ {[%clk 0:01:07]} 24. Rxg2 {[%clk 0:02:16]}  Qf3 {[%clk 0:00:53]} 25. Rd3 {[%clk 0:02:09]}  Qc6 {[%clk 0:00:42]} 26. Nd5 {[%clk 0:02:07]}  Bf8 {[%clk 0:00:34]} 27. Nf6+ {[%clk 0:02:03]}  Kh8 {[%clk 0:00:32]} 28. Rh3 {[%clk 0:02:00]}  h6 {[%clk 0:00:29]} 29. Kg1 {[%clk 0:01:45]}  gxf6 {[%clk 0:00:20]} 30. Bxf6+ {[%clk 0:01:41]}  Kh7 {[%clk 0:00:20]} 31. Qe2 {[%clk 0:01:15]}  Qe8 {[%clk 0:00:19]} 32. Rhg3 {[%clk 0:01:05]}  Rd7 {[%clk 0:00:14]} 33. Qf3 {[%clk 0:01:02]}  Rf7 {[%clk 0:00:11]} 34. Rg6 {[%clk 0:01:00]}  Raa7 {[%clk 0:00:10]} 35. Qh5 {[%clk 0:01:00]}  Rxf6 {[%clk 0:00:09]} 36. Rxh6+ {[%clk 0:00:59]}  Bxh6 {[%clk 0:00:08]} 37. Qxe8 {[%clk 0:00:59]}  Rg7 {[%clk 0:00:07]} 38. Qd8 {[%clk 0:00:53]}  Rfg6 {[%clk 0:00:07]} 39. Rxg6 {[%clk 0:00:52]}  Rxg6+ {[%clk 0:00:07]} 40. Kf2 {[%clk 0:00:52]}  Bf4 {[%clk 0:00:07]} 41. h3 {[%clk 0:00:52]}  Be5 {[%clk 0:00:07]} 42. Qe7+ {[%clk 0:00:51]}  Kh6 {[%clk 0:00:07]} 43. Qf8+ {[%clk 0:00:50]}  Kh7 {[%clk 0:00:07]} 44. Qa8 {[%clk 0:00:49]}  Bd4+ {[%clk 0:00:05]} 45. Kf3 {[%clk 0:00:48]}  e5 {[%clk 0:00:05]} 46. Qxa6 {[%clk 0:00:46]}  e4+ {[%clk 0:00:06]} 47. Kf4 {[%clk 0:00:46]}  e3 {[%clk 0:00:06]} 48. Qb7+ {[%clk 0:00:44]}  Kh6 {[%clk 0:00:04]} 49. Qf3 {[%clk 0:00:44]}  Re6 {[%clk 0:00:03]} 50. Qe2 {[%clk 0:00:42]}  Kg6 {[%clk 0:00:03]} 51. a4 {[%clk 0:00:41]}  Re4+ {[%clk 0:00:03]} 52. Kf3 {[%clk 0:00:41]}  Kg5 {[%clk 0:00:03]} 53. Qg2+ {[%clk 0:00:40]}  Kf6 {[%clk 0:00:03]} 54. a5 {[%clk 0:00:25]}  e2 {[%clk 0:00:03]} 55. Qxe2 {[%clk 0:00:25]}  Rxe2 {[%clk 0:00:00]} 56. Kxe2 {[%clk 0:00:26]} 1-0

[Event "January 2 Early 2024"]
[Site "https://www.chess.com"]
[Date "2024.01.02"]
[Round "4"]
[White "Mindlin, Alon"]
[Black "Bolat, Inayat"]
[Result "1-0"]
[Board "86"]
[TimeControl "180+1"]
[WhiteFideId "2800071"]
[BlackFideId "13733125"]
[WhiteElo "2690"]
[BlackElo "2441"]
[WhiteTeam "ISR"]
[BlackTeam "KAZ"]
[WhiteClock "0:00:50"]
[BlackClock "0:00:03"]

1. e4 {[%clk 0:03:00]}  e5 {[%clk 0:02:55]} 2. Nf3 {[%clk 0:03:00]}  Nc6 {[%clk 0:02:53]} 3. Nc3 {[%clk 0:03:01]}  Nf6 {[%clk 0:02:53]} 4. Bb5 {[%clk 0:03:01]}  Bb4 {[%clk 0:02:52]} 5. O-O {[%clk 0:03:01]}  O-O {[%clk 0:02:51]} 6. d3 {[%clk 0:03:01]}  d6 {[%clk 0:02:46]} 7. Bg5 {[%clk 0:03:00]}  Bxc3 {[%clk 0:02:46]} 8. bxc3 {[%clk 0:03:01]}  Ne7 {[%clk 0:02:46]} 9. Nh4 {[%clk 0:02:59]}  Ng6 {[%clk 0:02:29]} 10. Nxg6 {[%clk 0:02:56]}  hxg6 {[%clk 0:02:30]} 11. f4 {[%clk 0:02:55]}  c6 {[%clk 0:02:30]} 12. Bc4 {[%clk 0:02:49]}  Qb6+ {[%clk 0:02:24]} 13. Kh1 {[%clk 0:02:48]}  Ng4 {[%clk 0:02:24]} 14. Qe1 {[%clk 0:02:44]}  Ne3 {[%clk 0:02:20]} 15. Rb1 {[%clk 0:02:38]}  Qc5 {[%clk 0:02:14]} 16. Be7 {[%clk 0:01:17]}  Nxf1 {[%clk 0:00:47]} 17. Bxf8 {[%clk 0:01:15]}  Kxf8 {[%clk 0:00:42]} 18. Qh4 {[%clk 0:01:14]}  g5 {[%clk 0:00:14]} 19. Qxg5 {[%clk 0:01:01]}  f6 {[%clk 0:00:14]} 20. Qh5 {[%clk 0:01:01]}  d5 {[%clk 0:00:13]} 21. Rxf1 {[%clk 0:00:54]}  dxc4 {[%clk 0:00:12]} 22. fxe5 {[%clk 0:00:54]}  cxd3 {[%clk 0:00:11]} 23. Qh8+ {[%clk 0:00:53]}  Kf7 {[%clk 0:00:10]} 24. exf6 {[%clk 0:00:54]}  g5 {[%clk 0:00:06]} 25. Qg7+ {[%clk 0:00:53]}  Ke6 {[%clk 0:00:07]} 26. f7 {[%clk 0:00:50]}  Bd7 {[%clk 0:00:03]} 27. Qf6# {[%clk 0:00:50]} 1-0